{"text_format":"1","workbook":"xlsx","n_sheets":2,"sheets":["Заходи","Лист1"],"not_rendered":{"charts":0,"images":2,"macros":0,"external_links":0,"defined_names":24,"comments":0,"pivot_tables":0},"unopened":[],"bounds":{"document_bytes":16777216,"sheet_cells":100000,"rows_first":2000,"rows_last":500,"rows_between":2000,"halvings":0,"cell_chars":16384,"cell_head_chars":4096},"cells_cut":0,"cells_raw":0,"read":"whole","date_system":"1900"}

{"sheet":"Заходи","index":0,"n_rows":268,"n_cols":13,"rows_kept":268,"cut":false,"hidden":false,"merged":[[263,0,263,3],[264,0,264,3],[265,0,265,3],[266,0,266,3],[267,0,267,3],[0,7,2,10],[256,1,258,1],[256,0,258,0],[256,2,258,2],[256,3,258,3],[256,4,258,4],[256,5,258,5],[260,0,260,3],[261,0,261,3],[262,0,262,3],[98,0,98,10],[99,0,99,10],[100,0,100,10],[102,0,102,10],[103,0,103,10],[119,0,119,10],[125,0,125,10],[126,0,126,10],[116,5,117,5],[65,0,65,10],[69,0,69,10],[75,0,75,10],[77,0,77,10],[78,0,78,10],[87,0,87,10],[95,0,95,10],[96,0,96,10],[97,0,97,10],[91,0,91,3],[92,0,92,3],[93,0,93,3],[94,0,94,3],[116,4,117,4],[105,0,105,10],[106,0,106,10],[107,0,107,10],[114,0,114,10],[109,3,110,3],[109,2,110,2],[109,1,110,1],[109,0,110,0],[109,4,110,4],[4,10,5,10],[4,6,4,9],[4,0,5,0],[4,2,5,2],[4,4,5,4],[4,1,5,1],[4,5,5,5],[4,3,5,3],[10,0,10,10],[6,0,6,10],[7,0,7,10],[8,0,8,10],[51,3,52,3],[51,2,52,2],[51,1,52,1],[51,0,52,0],[104,0,104,10],[109,5,110,5],[127,0,127,10],[128,0,128,10],[13,0,13,10],[17,0,17,10],[25,0,25,10],[26,0,26,10],[30,0,30,10],[33,0,33,10],[34,0,34,10],[38,0,38,10],[39,0,39,10],[40,0,40,10],[42,0,42,10],[44,0,44,10],[46,0,46,10],[63,0,63,10],[64,0,64,10],[116,3,117,3],[116,2,117,2],[116,1,117,1],[116,0,117,0],[35,0,35,3],[36,0,36,3],[37,0,37,3],[155,0,155,10],[157,0,157,10],[158,0,158,10],[142,0,142,10],[143,0,143,10],[144,0,144,10],[146,0,146,10],[149,0,149,10],[130,0,130,10],[131,0,131,10],[132,0,132,10],[137,0,137,10],[139,0,139,3],[140,0,140,3],[141,0,141,3],[181,0,181,10],[182,0,182,10],[179,0,179,3],[180,0,180,3],[203,0,203,3],[193,0,193,10],[195,0,195,10],[197,0,197,10],[198,0,198,10],[150,0,150,10],[153,0,153,10],[250,0,252,0],[250,1,252,1],[250,2,252,2],[250,3,252,3],[250,4,252,4],[250,5,252,5],[242,0,242,10],[244,0,244,10],[245,0,245,10],[248,0,248,10],[249,0,249,10],[230,0,230,10],[234,0,234,10],[236,0,236,10],[237,0,237,10],[240,0,240,10],[218,0,218,10],[220,0,220,10],[224,0,224,10],[226,0,226,10],[229,0,229,10],[205,0,205,10],[253,1,255,1],[253,0,255,0],[253,2,255,2],[253,3,255,3],[253,4,255,4],[253,5,255,5],[161,0,161,10],[163,0,163,10],[165,0,165,10],[166,0,166,10],[169,0,169,10],[206,0,206,10],[211,0,211,10],[214,0,214,10],[215,0,215,10],[204,0,204,10],[183,0,183,10],[185,0,185,10],[187,0,187,10],[188,0,188,10],[191,0,191,10],[171,0,171,10],[173,0,173,10],[174,0,174,10]]}
[null,null,null,null,null,null,null,"Додаток  до Комплексної програми                                                                    з енергоефективності та клімату на 2023-2025"]
[]
[]
[]
["№ заходу відповідно до каталогу заходів ЄЕВ","Назва напряму діяльності","Перелік заходів","Відповідальний виконавець","Пріоритетність виконання 1","Строк виконання заходу, роки","Обсяг фінансування по роках, тис. грн.",null,null,null,"Джерела фінансування \n(бюджет Чортківської територіальної громади, обласний/державний бюджет, інвестиційні кошти комунального підприємства, грантові/кредитні кошти)"]
[null,null,null,null,null,null,2022,2023,2024,2025]
["1. Статегічний розвиток та просторове планування "]
["1.1. Муніципальні концепції та стратегії"]
["1.1.1. Стратегія щодо енергопостачання/енергоефективності/адаптації та пом'якшення змін клімату"]
["1.1.1 а","Встановлення якісних та кількісних цілей","Моніторинг виконання Стратегічного плану розвитку Чортківської міської ради Тернопільської області на 2019-2026 роки","відділ муніципального розвитку та енергоменеджменту","**","2022-2025","не потребує фінансування","не потребує фінансування","не потребує фінансування","не потребує фінансування","не потребує фінансування"]
["1.1.2. Концепція щодо клімату та енергії"]
["1.1.2 а","Узгодження довгострокових та середньострокових цілей","Розроблення Плану дій сталого енергетичного розвитку та клімату до 2030 року (в тому числі внесення змін)","відділ муніципального розвитку та енергоменеджменту","***",2022,"не потребує фінансування",null,null,null,"не потребує фінансування",null,"виконано"]
["1.1.2 б","Узгодження довгострокових та середньострокових цілей","Розроблення Плану сталої міської мобільності ","управління комунального господарства,\nвідділ архітектури та містобудівного кадастру Чортківської міської ради","**","2023-2024",null,"не потребує фінансування","не потребує фінансування",null,"не потребує фінансування"]
["1.1.3.\t Моніторинг концепції/стратегії/програми/плану/тощо щодо енергопостачання/енергоефективності/адаптації та пом’якшення змін клімату"]
["1.1.3 а","Моніторинг та контроль ","Порядок розроблення міських цільових програм, моніторингу та звітності про їх виконання\n","відділу з економічного розвитку та комунальної власності ","***",2022,"не потребує фінансування",null,null,null,"не потребує фінансування",null,"виконано"]
["1.1.3 б","Моніторинг та контроль ","Підготовлення моніторингового звіту про виконання Плану дій зі сталого енергетичного розвитку та клімату Чортківської територіальної громади  до 2030 року","відділ муніципального розвитку та енергоменеджменту","***","2023,\n2025",null,"не потребує фінансування",null,"не потребує фінансування","не потребує фінансування"]
["1.1.3 в","Моніторинг та контроль ","Програма охорони довкілля, раціонального використання природних ресурсів та забезпечення екологічної безпеки Чортківської міської територіальної громади на 2021-2023 роки","КП \"Комбінат комунальних підприємств\", КП \"Чортківське ВУВКГ\"","**","2022-2023",442,225,null,null,"бюджет Чортківської міської територіальної громади"]
["1.1.5.  Економіка замкнутого циклу"]
["1.1.5 а","Покращення системи поводження з твердими побутовими відходами","Програма поводження з твердими побутовими відходами на території Чортківської міської територіальної громади на 2021-2023 роки","Управління комунального господарства,\nКП \"Комбінат комунальних підприємств\"","**","2022-2023",1130.0999999999999,700,null,null,"бюджет Чортківської міської територіальної громади"]
["1.1.5 б","Покращення системи поводження з твердими побутовими відходами","Придбання автотранспортного засобу сміттєвозу","Управління комунального господарства,\nКП \"Комбінат комунальних підприємств\"","**","2023-2024",null,1500,1500,null,"інвестиційні кошти комунального підприємства"]
["1.1.5 в","Покращення системи поводження з твердими побутовими відходами","Впровадження роздільного збору ТПВ у житловому секторі, бюджетних уствновах та на підприємствах, закупівля контейнерів для збору ТПВ","Управління комунального господарства,\nКП \"Комбінат комунальних підприємств\"","***","2022-2023",800,600,null,null,"бюджет Чортківської міської територіальної громади",null,"виконано частково"]
["1.1.5 г","Покращення системи поводження з твердими побутовими відходами","Придбання гідравлічного пресу 8 тон для ПЕТ-пляшки","Управління комунального господарства,\nКП \"Комбінат комунальних підприємств\"","***",2022,100,null,null,null,"бюджет Чортківської міської територіальної громади",null,"виконано"]
["1.1.5 д","Покращення системи поводження з твердими побутовими відходами","Облаштування контейнерних майданчиків","Управління комунального господарства,\nКП \"Комбінат комунальних підприємств\"","***","2022-2023",330.1,100,null,null,"бюджет Чортківської міської територіальної громади"]
["1.1.5 е","Покращення системи поводження з твердими побутовими відходами","Будівництво сміттєсортувальної лінії","Управління комунального господарства,\nКП \"Комбінат комунальних підприємств\"","***","2023-2024",null,6000,null,null,"бюджет Чортківської міської територіальної громади"]
["1.1.5 ж","Покращення системи поводження з твердими побутовими відходами","Придбання та встановлення комплектів баків  для роздільного збору сміття (32 од.) в закладах освіти","Управління освіти, молоді та спорту\n","***",2023,null,128,null,null,"грантові"]
["1.2  Інструменти міського планування"]
["1.2.1 Просторове та енергетичне планування"]
["1.2.1 а","Розвиток просторового планування","Програма \nзабезпечення розроблення (оновлення) містобудівної документації \nЧортківської міської територіальної громади\n","відділ архітектури та містобудівного кадастру Чортківської міської ради ","**","2023-2025",null,620,2570,1550,"бюджет Чортківської міської територіальної громади"]
["1.2.1 б","Розвиток просторового планування","Програма ведення містобудівного кадастру Чортківської міської територіальної громади","відділ архітектури та містобудівного кадастру Чортківської міської ради ","**","2023-2025",null,1700,500,200,"бюджет Чортківської міської територіальної громади"]
["1.2.1 в","Розвиток просторового планування","Оновлення шарів системи ГІС","відділ архітектури та містобудівного кадастру Чортківської міської ради ","***","2023-2025",null,500,500,500,"грантові"]
["1.2.2  Мобільність і транспортне планування"]
["1.2.2 а","Надання якісних послуг з перевезення пасажирським транспортом","Розроблення транспортної моделі Чортківської міської територіальної громади","Управління житлово комунального господарства Чортківської міської ради","*","2023-2024",null,500,500,null,"бюджет Чортківської міської територіальної громади"]
["1.2.2 в","Організація ефективного та безпечного дорожнього руху","Розроблення схеми організації дорожнього руху на основі вимог Генерального плану","Управління житлово комунального господарства Чортківської міської ради","*","2023-2024",null,500,500,null,"бюджет Чортківської міської територіальної громади"]
["1.3  Зобов'язання власників землі"]
["1.3.2 Інноваційний, сталий розвиток міських і сільських районів"]
["Всього по розділу 1: бюджет Чортківської міської територіальної громади",null,null,null,null,null,null,{"$f":"H17+H19+H23+H28+H32+H33","v":2645},{"$f":"I17+I19+I23+I28+I32+I33","v":3570},{"$f":"J17+J19+J23+J28+J32+J33","v":1550}]
["Всього по розділу 1: інвестиційні кошти комунального підприємства",null,null,null,null,null,null,{"$f":"H20","v":1500},{"$f":"I20","v":1500},{"$f":"J20","v":0}]
["Всього по розділу 1: грантові",null,null,null,null,null,null,{"$f":"H25+H30","v":628},{"$f":"I25+I30","v":500},500]
["2. Муніципальні будівлі та споруди "]
["2.1 Використання енергетичних та водних ресурсів"]
["2.1.1 Зразкове управління і будівництво бюджетних будівель"]
["2.1.1 а","Застосування стандартів енергоефективності","Врахування в тендерних закупівлях стандартів енергоефективності","уповноважені особи з публічних звкупівель головних розпорядників коштів","***","2022-2025","не потребує фінансування","не потребує фінансування","не потребує фінансування","не потребує фінансування","не потребує фінансування"]
["2.1.2  Початковий огляд та моніторинг споживання енергії та води"]
["2.1.2 а","Ефективне використання енергетичних ресурсів","Періодичне звітування на засідані сесії міської ради про використання енергетичних ресурсів  бюджетними будівлями (в т.ч. скорочення викидів СО2)","відділ муніципального розвитку та енергоменеджменту","*","2022-2025","не потребує фінансування","не потребує фінансування","не потребує фінансування","не потребує фінансування","не потребує фінансування"]
["2.1.3 Концепція/стратегія/програма/план/тощо модернізацій, оптимізація роботи   "]
["2.1.3 а","Підвищення енергоефективності","Розроблення Програми енергоефективних\nзаходів в бюджетних установах Чортківської міської ради\nна 2021 - 2024 роки","відділ муніципального розвитку та енергоменеджменту","***","2022-2024","не потребує фінансування","не потребує фінансування","не потребує фінансування",null,"не потребує фінансування"]
["2.1.4 Зразкове нове будівництво або ремонт, реновація"]
["2.1.4 а","Впровадження енергоефективних заходів в бюджетних будівлях","Капітальний ремонт Чортківської мистецької школи Чортківської міської ради (утеплення даху, фасадів, заміна вікон та дверей)","управління культури та мистецтв ","***","2024-2025",null,null,20000,15000,"грантові"]
["2.1.4 б","Впровадження енергоефективних заходів в бюджетних будівлях","Капітальний ремонт будівлі Центру культурних послуг с. Біла Чортківської міської ради (облаштування гідроізоляції, заміна вікон, електромонтажні роботи)","управління культури та мистецтв ","***","2024-2025",null,null,1500,3000,"грантові"]
["2.1.4 в","Впровадження енергоефективних заходів в бюджетних будівлях\n","Капітальний ремонт будівлі Центру культурних послуг с. Росохач Чортківської міської ради (облаштування гідроізоляції, заміна вікон, електромонтажні роботи)","управління культури та мистецтв ","***","\n\n2024",null,null,8000,null,"грантові"]
["2.1.4 г","Впровадження енергоефективних заходів в бюджетних будівлях","Реконструкція Чортківської публічної бібліотеки Чортківської міської ради (реконструкція шатрового даху, заміна вікон)","управління культури та мистецтв ","***","\n\n2024-2025",null,null,7000,7000,"грантові"]
["2.1.4 д","\n\nВпровадження енергоефективних заходів в бюджетних будівлях","Капітальний ремонт будівель Чортківської ЗОШ І-ІІІ ст.№ 7 Чортківської міської ради (утеплення цоколю, зовнішніх стін, даху, заміна вікон та дверей, ремонт системи опалення, вентиляції, встановлення сонячних батарей для освітлення придворової території)","управління освіти, молоді та спорту","***","2022-2023",4950,11550,null,null,"кредитні кошти",null,"Вартість проєкту згідно з ПКД  - 26402,476 тис.грн. 150, 000 тис. євро - грант, 2,5 млн.грн. - міський бюджет, 16,500 млн.грн. - кредит. 2022 рік: 4950 тис.грн.(кредит)+ 536,5 тис.грн.(співфінансування, міський бюджет)+629 тис.грн., 2023 рік: 11550 тис.грн.(кредит) + 1334,50 тис.грн. (співфінансування)"]
[null,null,null,null,null,null,536.5,1334.5,null,null,"бюджет Чортківської територіальної громади"]
["2.1.4 е","\nВпровадження енергоефективних заходів в бюджетних будівлях","Капітальний ремонт  будівель Білівського опорного закладу загальної середньої освіти І-ІІІ ст. Чортківської міської ради (утеплення фасаду, даху, підвала, влаштування відмостки, заміна вікон та дверей)","управління освіти, молоді та спорту","***","\n\n2024",null,null,9000,null,"грантові"]
["2.1.4 ж","\nВпровадження енергоефективних заходів в бюджетних будівлях","Капітальний ремонт  будівлі  ДНЗ №7 Чортківської міської ради (утеплення фасадів, даху, заміна дверей, встановлення ІТП, модернізація системи освітлення)","управління освіти, молоді та спорту","***",2024,null,null,3865,null,"грантові"]
["2.1.4 3","\nВпровадження енергоефективних заходів в бюджетних будівлях","Капітальний ремонт  будівлі  ДНЗ №8 Чортківської міської ради (утеплення фасадів, даху, цоколю, заміна вікон та дверей, модернізація системи освітлення)","управління освіти, молоді та спорту","***",2024,null,null,3974,null,"грантові"]
["2.1.4 и","\nВпровадження енергоефективних заходів в бюджетних будівлях","Капітальний ремонт  будівлі ЗОШ  І-ІІІ ст. №2 Чортківської міської ради (утеплення фасаду, даху, підвала, встановлення ІТП, заміна вікон та дверей)","управління освіти, молоді та спорту","***","\n\n2024",null,null,5848.0690000000004,null,"грантові"]
["2.1.4 і","\nВпровадження енергоефективних заходів в бюджетних будівлях","Капітальний ремонт  будівель  ДНЗ №3 Чортківської міської ради (утеплення фасадів, даху, встановлення ІТП, модернізація системи освітлення)","управління освіти, молоді та спорту","***",2024,null,null,2919.9189999999999,null,"грантові"]
["2.1.4 ї","\nВпровадження енергоефективних заходів в бюджетних будівлях","Капітальний ремонт  будівель  ДНЗ №6 Чортківської міської ради (утеплення фасадів,цоколю, заміна вікон та дверей, модернізація системи опалення)","управління освіти, молоді та спорту","***",2024,null,null,4131.05,null,"грантові"]
["2.1.4 й","\nВпровадження енергоефективних заходів в бюджетних будівлях","Капітальний ремонт  будівель  ДНЗ №1 Чортківської міської ради (утеплення фасадів, даху, заміна вікон та дверей,встановлення ІТП, модернізація системи освітлення)","управління освіти, молоді та спорту","***",2024,null,null,4715.88,null,"грантові"]
["2.1.4 к","\nВпровадження енергоефективних заходів в бюджетних будівлях","Капітальний ремонт  будівлі  ДНЗ № 9 Чортківської міської ради (утеплення фасадів, даху, заміна вікон та дверей, модернізація системи опалення та освітлення)","управління освіти, молоді та спорту","***",2024,null,null,5720,null,"грантові"]
["2.1.4 л","\nВпровадження енергоефективних заходів в бюджетних будівлях","Капітальний ремонт  будівель полікліники та стаціонару Комунальне некомерційне підприємство “Чортківська центральна міська лікарня” (утеплення фасадів, горищ, ремонт даху, встановлення ІТП, заміна вікон)","Управління соціального захисту та охорони здоров’я","***",2023,null,45205.769,null,null,"кредитні кошти"]
["2.1.4 м","Впровадження енергоефективних заходів в бюджетних будівлях","Ремонт будівлі Центру культурних послуг м. Чортків ім. К. Рубчакової Чортківської міської ради (заміна дверей, вікон, ремонт опалювальної системи)","управління культури та мистецтв ","***",2025,null,null,null,12000,"грантові"]
["2.2 Кількісні цільові показники в галузі енергетики, ефективності та впливу на  клімат"]
["2.2.1 Частка ВДЕ в опаленні"]
["2.2.2  Частка ВДЕ в електроенергії "]
["2.2.2 а","Використання альтернативних видів енргії","Комунальне некомерційне підприємство “Чортківська центральна міська лікарня” (встановлення сонячних панелей для власного споживання)","Управління соціального захисту та охорони здоров’я","***",2023,null,5970,null,null,"грантові",null,"встановлено 56 панелей на 21 кВт"]
["2.2.2 б","Використання альтернативних видів енргії","КП «Чортківське виробниче управління\nводопровідно - каналізаційного господарства» (встановлення сонячних електростанцій для власного споживання)","КП «Чортківське виробниче управління\nводопровідно - каналізаційного господарства» ","***",2023,null,4358.933,null,null,"грантові"]
["2.2.2 в","Використання альтернативних видів енергії","КНП \"Центр первинної медико-санітарної допомоги\" Чортківської міської ради (встановлення генератора на сонячних панелях (Р=5 кВт) для живлення холодильників по зберіганню вакцин)","КНП \"Центр первинної медико-санітарної допомоги\" Чортківської міської ради","***",2022,null,null,null,null,"грантові",null,"виконано"]
["2.2.3  Енергоефективність - опалення"]
["2.2.3 а","Впровадження енергоефективних заходів в бюджетних будівлях","Встановлення модульної котельні на твердому паливі для обігріву приміщень Білівського опорного закладу загальної середньої освіти І-ІІІ ст. Чортківської міської ради","управління освіти, молоді та спорту","***","2022-2023",616,600,null,null,"бюджет Чортківської міської територіальної громади",null,"в процесі"]
["2.2.3 б","Впровадження енергоефективних заходів в бюджетних будівлях","Дошкільний навчальний заклад № 6 встановлення конденсаційних газових котлів (2 од. х 30 кВт)","управління освіти, молоді та спорту","***",2022,643.62,null,null,null,"бюджет Чортківської міської територіальної громади",null,"виконано"]
["2.2.3 в","Впровадження енергоефективних заходів в бюджетних будівлях","Капітальний ремонт приміщень котельні Чортківської спеціалізованої школа-інтернату № 3 спортивного профілю І-ІІІ ступенів імені Романа Ільяшенка Чортківської міської ради Тернопільської області із встановленням твердопаливного котла по вул. С. Коновальця, 13 в м. Чорткові ","управління освіти, молоді та спорту","***",2022,900,null,null,null,"грантові"]
["2.2.3 г","Впровадження енергоефективних заходів в бюджетних будівлях","Встановлення альтернативного котла на твердому паливі для обігріву приміщеня Горішньовигнанського загальноосвітнього навчального закладу І-ІІІ ступенів - ДНЗ\"","управління освіти, молоді та спорту","***",2022,906.5,600,null,null,"бюджет Чортківської міської територіальної громади"]
["2.2.3 д","Впровадження енергоефективних заходів в бюджетних будівлях","Впровадження системи моніторингу показників оточуючого середовища та показиків мікроклімату на дотримання санітарних норм у навчальних закладах","відділ електроних послуг управління комунального господарства",null,"2024-2025",null,null,300,300,"грантові"]
["2.2.4  Енергоефективність - електроенергія "]
["2.2.4 а","Запровадження енергоефективних заходів","Заміна на LED-лампи в закладах Чортківської міської територіальної громади (37 закладів, 6439 од.)","управління освіти, молоді та спорту, управління культури та мистецтв, управління соціального захисту та охорони здоров'я","***",2024,null,null,848.25,null,"бюджет Чортківської міської територіальної громади"]
["2.3 Зовнішнє освітлення та ефективність використання води"]
["2.3.1 Зовнішнє освітлення"]
["2.3.1 а","Енергоефективне зовнішнє освітлення","Реконструкція вуличного освітлення на площі Героїв Євромайдану Чортківської територіальної громади","КП \"Міськсвітло\"","***",2024,null,null,31054.713,null,"\nдержавний бюджет",null,"Реалізація заходу в рамках проекту \"Капітальний ремонт \"Площі Героїв Євромайдану\" у м. Чортків, зокрема реконструкція вуличного освітлення\""]
["2.3.1 б","\n\nЕнергоефективне зовнішнє освітлення","Реконструкція вуличного освітлення по вул. Т.Шевченка,15 та на пішохідній зоні по вул. Т.Шевченка (ділянка від вул. С.Бандери до площі Героїв Євромайдану) Чортківської територіальної громади","КП \"Міськсвітло\"","***",2024,null,null,11294.481,null,"\nдержавний бюджет",null,"Реалізація заходу в рамках проекту \"Капітальний ремонт скверу по вул. Т. Шевченка, 15 та пішохідної зони по вул. Т. Шевченка (ділянка від вул. С.Бандери до площі Героїв Євромайдану) у м. Чортків"]
["2.3.1 в","\n\nЕнергоефективне зовнішнє освітлення","Реконструкція вуличного освітлення на пішохідній зоні по вул. Ринок Чортківської територіальної громади","КП \"Міськсвітло\"","***",2024,null,null,12066.572,null,"\nдержавний бюджет",null,"\nРеалізація заходу в ромках проєкту \"Реконструкція вуличного освітлення на пішохідній зоні по вул. Ринок Чортківської територіальної громади\""]
["2.3.1 г","\n\nЕнергоефективне зовнішнє освітлення","Реконструкція вуличного освітлення на проїзній частині вул. С.Бандери (ділянка Домініканського костелу св. Станіслава до вул. О.Гончара) Чортківської територіальної громади","КП \"Міськсвітло\"","***",2024,null,null,9110.8510000000006,null,"\nдержавний бюджет",null,"Реалізація заходу в рамках проекту \"Капітальний ремонт проїзної частини вул. С.Бандери (ділянка Домініканського костелу св. Станіслава до вул. О.Гончара), зокрема реконструкція вуличного освітлення\""]
["2.3.1 д","\n\nЕнергоефективне зовнішнє освітлення","Реконструкція вуличного освітлення на ділянці від дороги М19 до мосту через р. Серет","КП \"Міськсвітло\"","***",2024,null,null,96233.910999999993,null,"\nдержавний бюджет",null,"Реалізація заходу в рамках проекту \"Поточний середній ремонт вул. Копичинецька (ділянка від дороги М19 до мосту через р. Серет), зокрема реконструкція вуличного освітлення\""]
["2.3.1 е","\n\nЕнергоефективне зовнішнє освітлення","Реконструкція вуличного освітлення по вул. Незалежності окремими ділянками ","КП \"Міськсвітло\"","***",2024,null,null,38044.131000000001,null,"\nдержавний бюджет",null," Реалізація заходу в рамках проекту \"Поточний середній ремонт вул. Незалежності окремими ділянками, зокрема реконструкція вуличного освітлення\""]
["2.3.1 є","\n\nЕнергоефективне зовнішнє освітлення","Реконструкція вуличного освітлення по вул. Т.Шевчнка (ділянка від вул. Пітушевського до вул. Копичинецька)","КП \"Міськсвітло\"","***",2024,null,null,51000,null,"\nдержавний бюджет",null,"Реалізація заходу в рамках проекту \"Реконструкція вул. Т.Шевчнка (ділянка від вул. Пітушевського до вул. Копичинецька), зокрема реконструкція вуличного освітлення\""]
["2.3.1 ж","\n\nЕнергоефективне зовнішнє освітлення","Диспетчиризація зовнішнього вуличного освітлення, (встановлення блоків керування, та сервера з програмним комплексом)","КП \"Міськсвітло\"","***",2024,null,null,1000,null,"бюджет Чортківської територіальної громади"]
["2.3.2  Ефективність використання води"]
["2.3.2 а","Ефективне використання води","Капітальний ремонт/реконструкція системи водопостачання та водовідведення в 31 бюджетному закладі","управління освіти, молоді та спорту, управління культури та мистецтв, управління соціального захисту та охорони здоров'я, Чортківська міська територіальна громада","***","2023-2025",null,null,null,null,"бюджет Чортківської територіальної громади"]
["2.3.2 б","Ефективне використання води","Встановлення аераторів в 46 бюджетних будівлях","управління освіти, молоді та спорту, управління культури та мистецтв, управління соціального захисту та охорони здоров'я, Чортківська міська територіальна громада","***",2023,null,65,null,null,"бюджет Чортківської територіальної громади"]
["2.3.2 в","Запровадження енергоефективних заходів","Встановлення бойлерів в закладах дошкільної освіти (20 шт.)","управління освіти, молоді та спорту","***",2023,null,80,null,null,"бюджет Чортківської територіальної громади"]
["Всього по розділу 2: державний бюджет",null,null,null,null,null,null,0,{"$f":"I80+I81+I82+I83+I84+I86","v":210760.52799999999},0]
["Всього по розділу 2: бюджет Чортківської міської територіальної громади",null,null,null,null,null,null,{"$f":"H53+H71+H90+H91","v":2079.5},{"$f":"I87","v":1000},0]
["Всього по розділу 2: грантові кошти",null,null,null,null,null,null,{"$f":"H67+H68","v":10328.933000000001},{"$f":"I48+I49+I50+I51+I54+I55+I56+I58+I59+I61+I75","v":66409.969000000012},{"$f":"J48+J49+J51+J63+J75","v":37300}]
["Всього по розділу 2: кредитні кошти",null,null,null,null,null,null,{"$f":"H52+H62","v":56755.769},0,0]
["3. Постачання та розподіл  "]
["3.1 Стратегія підприємства, стратегія постачання"]
["3.1.1 Корпоративна стратегія постачальників енергоресурсів"]
["3.2 Продукція, тарифи, інформація для користувачів"]
["3.2.1 Перелік товарів та послуг  "]
["3.2.3 Заходи впливу на споживання енергії "]
["3.2.3 а","Підвищення обізнаності споживачів та їх мотивація","Встановлення лічильників з автоматичною передачею даних для обліку споживання енергетичних ресурсів у 47  бюджетних закладах","управління освіти, молоді та спорту, управління культури та мистецтв, управління соціального захисту та охорони здоров'я, Чортківська міська територіальна громада","**","2024-2025",null,null,750,750,"бюджет Чортківської територіальної громади"]
["3.3 Місцеве виробництво енергії на території громади"]
["3.3.1 Вторинні теплові ресурси"]
["3.3.2 Опалення та кондиціонування повітря завдяки енергії з ВДЕ на території громади "]
["3.3.4 Когенерація та скидне тепло, що утворюється від виробництва енергії на території громади та використовуються для нагрівання, охолодження"]
["3.4 Енергоефективність водопостачання"]
["3.4.1 Енергоефективність водопостачання"]
["3.4.1 а","Забезпечення мешканців громади якісним водопостачанням та водовідведенням","Реконструкція водопроводу від водозабору \"Біла Камінна\" до ТОВ \"СЕ Борднеце-Україна\"","Управління житлово-комунального господарства,\nКП \"Чортківське виробниче управління водопровідно - каналізаційного господарства\"\n","**",2024,null,null,3394.9659999999999,null,"бюджет Чортківської територіальної громади"]
["3.4.2 б","Забезпечення мешканців громади якісним водопостачанням та водовідведенням","Упорядкування зон санітарної охорони центрального водозабору питного водопостачання вздовж р. Серет в м. Чортків Тернопільської області ","Управління житлово-комунального господарства,\nКП \"Чортківське виробниче управління водопровідно - каналізаційного господарства\"","**",2024,null,null,5638.5,null,"державний бюджет\n"]
[null,null,null,null,null,null,null,null,596.5,null,"бюджет Чортківської територіальної громади"]
["3.4.3 в","Забезпечення мешканців громади якісним водопостачанням та водовідведенням","Реконструкція водопроводу по вул. Монастирська, Незалежності в м. Чортків Тернопільської області.","Управління житлово-комунального господарства,\nКП \"Чортківське виробниче управління водопровідно - каналізаційного господарства\"","**",2024,null,null,3545.6460000000002,null,"бюджет Чортківської територіальної громади"]
["3.4.3 г","Забезпечення мешканців громади якісним водопостачанням та водовідведенням","Реконструкція водопроводу по вул. Січинського, вул. С. Бандери в м. Чортків Тернопільської області","Управління житлово-комунального господарства,\nКП \"Чортківське виробниче управління водопровідно - каналізаційного господарства\"","**",2024,null,null,5093.9440000000004,null,"бюджет Чортківської територіальної громади"]
["3.4.4 д","Ефективне водопостачання та водовідведення","Оновлення схеми водопостачання та водовідведення громади","КП \"Чортківське виробниче управління водопровідно - каналізаційного господарства\"","**","2024-2025",null,null,null,null,"грантові",null,"160 тис.грн. придбання приладдя для  інвентаризації мереж, нанесення у систему ГІС"]
["3.4.2 Ефективне використання води"]
["3.4.2 а","Забезпечення мешканців громади якісним водопостачанням та водовідведенням","Будівництво та реконструкція систем роздільної каналізації, каналізаційних мереж і споруд на них.","КП \"Чортківське виробниче управління водопровідно - каналізаційного господарства\"",null,2023,null,250,null,null,"бюджет Чортківської міської територіальної громади"]
["3.4.2 б","Забезпечення мешканців громади якісним водопостачанням та водовідведенням","Реконструкція каналізаційної мережі по вул. Залізнична, Середня, С.Стрільців, Шопена, Стрімка, Замкова мікрорайону \"Залізничний\" в м. Чортків Тернопільської області","Управління житлово-комунального господарства,\nКП \"Чортківське виробниче управління водопровідно - каналізаційного господарства\"","***",2024,null,null,"1587,6\n",null,"бюджет Чортківської територіальної громади"]
[null,null,null,null,null,null,null,null,8996.4,null,"\n державний бюджет"]
["3.4.2 в","Ефективне використання водних ресурсів","Оснащення багатоквартирних житлових будинків вузлами комерційного обліку води (284 од.)","КП \"Чортківське виробниче управління водопровідно - каналізаційного господарства\"","***",2023,null,7100,null,null,"бюджет Чортківської територіальної громади"]
["3.4.3 Управління зеленими зонами"]
["3.4.3 а","Покращення благоустрою громади","\n\nВисадження додаткових зелених насаджень на площі Героїв Євромайдану Чортківської територіальної громади","КП \"Благоустрій\"","***",2024,null,null,"фінансування передбачено в п. 2.3.1 а",null,"фінансування передбачено в п. 2.3.1 а",null," Реалізація заходу в рамках проєкту \"Капітальний ремонт \"Площі Героїв Євромайдану\" у м. Чортків, зокрема реконструкція вуличного освітлення\""]
["3.4.3 б","Покращення благоустрою громади","Висадження додаткових зелених насаджень у сквері по вул. Т.Шевченка,15 та пішохідної зони по вул. Т.Шевченка (ділянка від вул. С.Бандери до площі Героїв Євромайдану)","КП \"Благоустрій\"","***",2024,null,null,"фінансування передбачено в п. 2.3.1 б",null,"фінансування передбачено в п. 2.3.1 б",null,"Реалізація заходу в рамках проекту \"Капітальний ремонт скверу по вул. Т.Шевченка,15 та пішохідної зони по вул. Т.Шевченка (ділянка від вул. С.Бандери до площі Героїв Євромайдану), зокрема реконструкція вуличного освітлення\""]
["3.4.3 в","Покращення благоустрою громади","Висадження додаткових зелених насаджень на пішохідній зоні по вул. Ринок Чортківської територіальної громади"," \nКП \"Благоустрій\"","***",2024,null,null,"фінансування передбачено в п. 2.3.1 в",null,"фінансування передбачено в п. 2.3.1 в",null," Реалізація заходу в рамках проекту \"Капітальний ремонт пішохідної зони по вул. Ринок у м. Чорткові, зокрема реконструкція вуличного освітлення\""]
["3.4.3 г","Покращення благоустрою громади","Реконструкція вул.Т.Шевчнка (ділянка від вул. Пітушевського до вул. Копичинецька), зокрема заміна зелених насаджень на нові","КП \"Благоустрій\"","***",2024,null,null,"фінансування передбачено в п. 2.3.1 г",null,"фінансування передбачено в п. 2.3.1 г",null," Реалізація заходу в рамках проекту \"Реконструкція вул. Т.Шевчнка (ділянка від вул. Пітушевського до вул. Копичинецька), зокрема реконструкція вуличного освітлення\""]
["3.4.3 г","Покращення благоустрою громади","Впровадження системи обліку та управління зеленими насадженнями","Відділ електроних послуг управління комунального господарства","*","2024-2025",null,null,7,7,"бюджет Чортківської територіальної громади"]
["3.5 Енергоефективність очищення стічних вод"]
["3.5.1 Енергоефективність очищення стічних вод"]
["3.5.2 Використання зовнішніх теплових енергоресурсів стічних вод"]
["3.5.3 Утилізація каналізаційного газу"]
["3.5.3 б","Проведення ремонтних та інших видів робіт для забезпечення нормального функціонування зовнішніх та внутрішніх водопровідно-каналізаційних мереж ","Реконструкція біологічних очисних споруд","\nКП \"Чортківське виробниче управління водопровідно - каналізаційного господарства\"","***",2022,98.2,null,null,null,"бюджет Чортківської територіальної громади",null,"виконано"]
["3.5.4 Управління дощовою водою"]
["3.6 Енергія з відходів"]
["3.6.1 Енергетичне використання відходів"]
["3.6.1 а","Ефективний менеджмент системи поводження з відходами ","Затвердження графіків та маршрутів вивезення твердих побутових відходів на території Чортківської міської територіальної громади","КП \"Комбінат комунальних підприємств\"","***","2023-2025","не потребує фінансування","не потребує фінансування","не потребує фінансування","не потребує фінансування","не потребує фінансування"]
["3.6.1 б","Створення інфраструктури для сортування та перероблення пріоритетних видів відходів","Виготовлення паспорта місць видалення відходів","КП \"Комбінат комунальних підприємств\"","***","2023-2024",null,null,null,null,"бюджет Чортківської територіальної громади"]
["3.6.1 в","Створення інфраструктури для сортування та перероблення пріоритетних видів відходів","Розробка муніципального плану поводження з відходами Чортківської територіальної громади","КП \"Комбінат комунальних підприємств\"","***","2023-2024",null,300,500,null,"бюджет Чортківської територіальної громади"]
["3.6.1 в","Створення інфраструктури для сортування та перероблення пріоритетних видів відходів","Впровадження розумної системи поводження з відходами","відділ електроних послуг управління комунального господарства","***","2023-2025",null,null,null,null,"грантові"]
["3.6.2 Енергетичне використання органічних відходів"]
["3.6.2 а","Впровадження системи компостування органічних відходів","Забезпечення компостерами закладів Чортківської міської ради, де продукуються органічні відходи (20 од.)","Управління освіти, молоді та спорту, управління соціального захисту та охорони здоров'я, КП \"Парковий культурно-спортивний комплекс\", КП \"Чортківський комбінат комунальних підприємств\"","***","2023-2024",null,130,null,null,"грантові"]
["Всього по розділу 3: державний бюджет",null,null,null,null,null,null,0,{"$f":"I110+I118","v":14634.9},0]
["Всього по розділу 3: бюджет Чортківської міської територіальної громади",null,null,null,null,null,null,0,{"$f":"I102+I109+I111+I112+I113+I125+I136","v":13888.056},{"$f":"J102+J125","v":757}]
["Всього по розділу 3: грантові кошти",null,null,null,null,null,null,{"$f":"H139","v":130},0,0]
["4. Мобільність  "]
["4.1 Мобільність в адміністрації"]
["4.1.1 Сприяння усвідомлення проблеми мобільності у адміністрації"]
["4.1.1 а","Заохочення працівників до сталої мобільності ","Організація та проведення кампанії \"Велосипедом на роботу\"","Управління комунального господарства","**","2022-2025","не потребує фінансування","не потребує фінансування","не потребує фінансування","не потребує фінансування","не потребує фінансування"]
["4.1.2 Транспортні засоби"]
["4.1.2 а","Ефективне використання транспортних засобів працівниками","Спільне використання службових автомобілів  (наприклад, спільний виїзд кількох служб на одному автомобілі)","Управління комунального господарства","**","2022-2025","не потребує фінансування","не потребує фінансування","не потребує фінансування","не потребує фінансування","не потребує фінансування"]
["4.1.2 б","Ефективне використання транспортних засобів працівниками","Проведення щорічного збору та аналізу даних про споживання палива транспортними засобами","Управління комунального господарства","**","2022-2025","не потребує фінансування","не потребує фінансування","не потребує фінансування","не потребує фінансування","не потребує фінансування"]
["4.2 Обмеження швидкості руху транспортних засобів, паркування"]
["4.2.1 Управління місцями для паркування\t\t\t\t\t\t\t\t\t\t\t\t\t\t\t\t\t\t\t\t\t\t\t\t"]
["4.2.1 а","Ефективний менеджмент паркувальних зон","Облаштування паркувальної зони на 150 паркомісць","Управління комунального господарства","**","2024-2025",null,null,150,350,"бюджет Чортківської територіальної громади"]
["4.2.1 б","Ефективний менеджмент паркувальних зон","Запровадження новітніх технологій у системі паркування (паркомати, мобільний додаток)","Відділ електроних послуг управління комунального господарства","**","2024-2025",null,null,5000,5000," грантові"]
["4.2.2 Основні транспортні осі "]
["4.2.2 а","Організація вулично-дорожньої та транспортної мережі","Капітальний ремонт дорожнього покриття доріг та тротуарів по вул. Незалежності (вул. Монастирська -вул. Шевченка), вул. Січинського - вул. В.Великого, вул. Синенького, вул. Маньовського, вул. Рубчакової, вул. Ринок (загальною довжиною 2,03 км)","Управління комунального господарства, КП \"Благоустрій\"","**",2024,null,null,2640,null,"бюджет Чортківської територіальної громади"]
["4.2.3 Привабливий дизайн громадських просторів і зниження швидкості "]
["4.2.3 а","Обмеження швидкості для транспортних засобів та пріоритетність для пішохідних зон","Обмеження руху в центральній частині міста, обмеження швидкості, облаштування \"лежачих поліцейських\"","Управління комунального господарства","**","2022-2025",null,50,150,null,"бюджет Чортківської територіальної громади"]
["4.3 Мобільність без застосування моторизованих транспортних засобів"]
["4.3.1 Мережа пішохідних доріжок, дорожні знаки"]
["4.3.1 б","Створення привабливої, безпечної мережі пішохідних доріжок з інформаційно-вказівними знаками","Поточний ремонт пішохідної мережі, тротуарів з пониженням бордюрів та використання тактильної плитки. (вул. Незалежності, Ягільницька, Л.Українки, Синенького, Копичинецька, с. Біла","Управління комунального господарства, КП \"Благоустрій\"",null,2023,null,3000,null,null,"бюджет Чортківської територіальної громади"]
["4.3.1 б","Модернізація пішохідної мережі","Капітальний ремонт дорожнього покриття тротуарів по вул. Копичинецька, Незалежності, Степана Бандери, Йосипа Сліпого (загальною довжиною 1,06 км)","Управління комунального господарства, КП \"Благоустрій\"","**","2023-2024",null,1200,1583,null,"бюджет Чортківської територіальної громади"]
["4.3.2 Мережа велосипедних доріжок, вивісок "]
["4.3.2 а","Розширення мережі велодоріжок","Капітальний ремонт тротуарів з облаштуванням велодоріжок по вул. Незплежності (1,456 км), вул. Ягільницька (1,486 км), вул. Січиньського ","управління комунального господарства","**",2023,null,3300,null,null,"бюджет Чортківської територіальної громади",null,"Поточний ремонт тротуару з облаштуванням велодоріжок"]
["4.3.3 Велопарковки "]
["4.3.3 а","Забезпечення достатньої кількості безпечних, доступних і зручних місць для паркування ","Встановлення велопарковок у всіх ключових точках тяжіння (включаючи зупинки громадського, приміського транспорту тощо)","управління комунального господарства","**","2024-2025",null,null,null,null,"бюджет Чортківської територіальної громади"]
["4.4 Громадський транспорт"]
["4.4.1 Якість доступного громадського транспорту"]
["4.4.1 а","Забезпечення високої якості громадського транспорту","Розроблення Програми розвитку та вдосконалення пасажирського транспорту","управління комунального господарства","**",2024,null,null,"не потребує фінансування",null,"не потребує фінансування"]
["4.4.1 б","Забезпечення високої якості громадського транспорту","Облаштування на зупинках громадського транспорту електроних інформаційних табло","відділ електроних послуг управління комунального господарства","**","2024-2025",null,null,null,null,"бюджет Чортківської територіальної громади"]
["4.4.2 Пріоритетність громадського транспорту "]
["4.4.2 а","Забезпечення пріоритетності громадського транспорту","Капітальний ремонт автобусних зупинок (25 шт.)","Управління комунального господарства, КП \"Благоустрій\"","*","2023-2025",null,500,null,null,"бюджет Чортківської територіальної громади"]
["4.4.3 Мультимодальна мобільність "]
["4.4.3 а","Розвиток та популяризація екологічно дружньої мультимодальної мобільність","Прокат засобів мікромобільності (самокати, велосипеди тощо)","Управління комунального господарства, відділ електроних послуг","**","2024-2025",null,null,null,null,"грантові"]
["4.5 Маркетинг мобільності"]
["4.5.1 Маркетинг міської мобільності"]
["4.5.1 а","Забезпечення проведення регулярних, активних піар і маркетингових заходів ","Проведення велоднів","відділ муніципального розвитку та енергоменеджменту","**","2023-2025",null,null,null,null,"не потребує фінансування"]
["4.5.1 в","Розвиток екологічно чистих видів транспорту","Реалізація та підтримка туристичних маршрутів веломережі та супутньої інфраструктури для велотуристів (навігації, місць відпочинку)",null,"**","2024-2025",null,null,null,null,"грантові"]
["4.5.1 г","Забезпечення проведення регулярних, активних піар і маркетингових заходів ","Розроблення мапи велотуристичних маршрутів з мережею велодружніх закладів туристичної та супутніх сфер",null,"**","2024-2025",null,null,null,null,"грантові"]
["4.5.1 д","Розвиток екологічно чистих видів транспорту","Проведення аудиту всіх культурних та природних обєктів, а також вже існуючої туристичної інфраструктури, яка потенційно може бути цікавою велотуристам",null,"**","2024-2025",null,null,null,null,"грантові"]
["Всього по розділу 4: бюджет Чортківської міської територіальної громади",null,null,null,null,null,null,{"$f":"H157+H160+H163+H171","v":6850},{"$f":"I152+I155+I161","v":4373},{"$f":"J152","v":350}]
["Всього по розділу 4: грантові кошти",null,null,null,null,null,null,0,{"$f":"I153","v":5000},{"$f":"J153","v":5000}]
["5. Внутрішня організація   "]
["5.1 Внутрішні структури"]
["5.1.1 Людські ресурси, організація"]
["5.1.1 а","Забезпечення наявності необхідних кваліфікованих кадрів","Внесення змін до Посадових інструкцій ченів робочої групи ЄЕВ, інших осіб відповідальних за реалізацію завдань передбачених Європейською енергетичною відзнакою","особи, відповідальні за реалізацію завдань, передбачених Європейською енергетичною","***",2023,null,"не потребує фінансування",null,null,"не потребує фінансування"]
["5.1.2 Робоча група"]
["5.1.2 а","Створення Коородинаційної групи та Робочої групи відповідальних за розробку, впровадження та моніторинг концепцій/стратегій/програм/планів","Організація та проведення регулярних засідань координаційної та робочої груп ЄЕВ","відділ муніципального розвитку та енергоменеджменту","***","2022-2025","не потребує фінансування","не потребує фінансування","не потребує фінансування","не потребує фінансування","не потребує фінансування"]
["5.2 Внутрішні процеси"]
["5.2.1 Інтеграція персоналу"]
["5.2.1 а","Запровадження системи енергоменеджменту в бюджетних будівлях","Вдосконалення системи енергетичного моніторингу, проведення енергоаудитів, виготовлення технічної документації для бюджетних будівель","Управління освіти молоді та спорту, Управління соціального захисту та охорони здоров'я, Управління культури та мистецтв, Управління комунального господарства","***","2022-2025",null,1000,1000,1000,"бюджет Чортківської територіальної громади"]
["5.2.1 а","Підвищення обізнаності, мотивації та стимулювання співробітників","Запровадження системи стимулювання впровадження енергоефективних заходів у бюджетних будівлях","Відділ муніципального розвитку та енергоменеджменту ","***",2023,null,null,null,null,"грантові"]
["5.2.2 Огляд ефективності та щорічне планування"]
["5.2.2 а","Щорічний моніторинг та оновлення Плану заходів Європейської енергетичної відзнаки ","Підготовка щоквартальних, річних звітів про результати виконання Плану заходів Європейської енергетичної відзнаки","відділ муніципального розвитку та енергоменеджменту","***","2022-2025","не потребує фінансування","не потребує фінансування","не потребує фінансування","не потребує фінансування","не потребує фінансування"]
["5.2.3 Подальше навчання"]
["5.2.3 а","Заохочення і подальша підготовка співробітників і політичних представників у сфері енергетики та клімату","Участь у семінарах, тренінгах з метою підвищення кваліфікації спеціаліститів структурних підрозділів, депутатів, відповідальних осіб у бюджетних закладах ","Управління освіти молоді та спорту, Управління соціального захисту та охорони здоров'я, Управління культури та мистецтв, Управління комунального господарства","***","2022-2025","не потребує фінансування","не потребує фінансування","не потребує фінансування","не потребує фінансування","не потребує фінансування"]
["5.2.4 Закупівлі"]
["5.2.4 а","Врахування енергетичних та кліматичних факторів","Враховувати при здійсненні закупівель:\n - клас ефективності офісного обладнання; \n - екологічність миючих засобів тощо","Управління освіти молоді та спорту, Управління соціального захисту та охорони здоров'я, Управління культури та мистецтв, Управління комунального господарства","***","2022-2025","не потребує фінансування","не потребує фінансування","не потребує фінансування","не потребує фінансування","не потребує фінансування"]
["5.3 Фінанси"]
["5.3.1 Бюджет на реалізацію енергетичної політики в рамках роботи органів місцевого самоврядування"]
["5.3.1 а","Вдосконалення енергетичної політики муніципалітету","Сплата членських внесків в Асоціацію \"Енергоефективні міста України\"","відділ муніципального розвитку та енергоменеджменту","***","2022-2025",null,8,8,8,"бюджет Чортківської територіальної громади","Глянути в попередньому акті, рахунку. Або уточнити в Асоціації Енергоефективних міст України","уточнити чи плануються заходи по цьому  і заповнити інформацію"]
["5.3.1 б","Вдосконалення енергетичної політики муніципалітету","Сплата річного внеску за впровадження та користування Європейською енергетичною відзнакою","відділ муніципального розвитку та енергоменеджменту","***","2022-2025",null,40,40,40,"бюджет Чортківської територіальної громади","це варто уточнити в Асоціації Енергоефективних міст України","уточнити чи плануються заходи по цьому  і заповнити інформацію"]
["5.3.1 в","Вдосконалення енергетичної політики муніципалітету","Оплата послуг аудитора Європейської енергетичної відзнаки","відділ муніципального розвитку та енергоменеджменту","***",2025,null,null,null,20,"бюджет Чортківської територіальної громади","це варто уточнити в Асоціації Енергоефективних міст України"]
["5.3.1 г","Вдосконалення енергетичної політики муніципалітету","Оплата послуг консультанта Європейської енергетичної відзнаки","відділ муніципального розвитку та енергоменеджменту","***","2023-2025",null,null,null,null,"бюджет Чортківської територіальної громади","це варто уточнити в Асоціації Енергоефективних міст України"]
["Всього по розділу 5: бюджет Чортківської міської територіальної громади",null,null,null,null,null,null,{"$f":"H190+H200+H201","v":1048},{"$f":"I190+I200+I201","v":1048},{"$f":"J190+J200+J201+J202","v":1068}]
["6. Комунікація та співпраця"]
["6.1 Комунікаційна стратегія"]
["6.1.1 Концепція щодо комунікації та співпраці"]
["6.1.1 а","Інформування мешканців","Проведення інформаційно-просвітницької компанії про екологічно чисті види транспорту ","відділ муніципального розвитку та енергоменеджменту","*","2022-2025","не потребує фінансування","не потребує фінансування","не потребує фінансування","не потребує фінансування","не потребує фінансування"]
["6.1.1 б","Інформування мешканців","Проведення рекламно-інформаційних, роз'яснювальних заходів щодо поводження з ТПВ із залученням засобів масової інформації, мережі інтернет, листівок, плакатів","відділ муніципального розвитку та енергоменеджменту","***","2022 - 2025","не потребує фінансування","не потребує фінансування","не потребує фінансування","не потребує фінансування","не потребує фінансування"]
["6.1.1 в","Інформування мешканців","Розпорядження про запровадження збору використаного паперу в закладах бюджетної сфери","відділ муніципального розвитку та енергоменеджменту","***","2022-2025","не потребує фінансування","не потребує фінансування","не потребує фінансування","не потребує фінансування","не потребує фінансування",null,"виконано"]
["6.1.1 г","Інформування мешканців","Проведення акцій з метою стимулювання до роздільного збору відходів із залученням школярів, населення, ФОП, підприємств","відділ муніципального розвитку та енергоменеджменту, КП \"Комбінат комунальних підприємств\"","***","2023-2025",null,90,100,100,"бюджет Чортківської територіальної громади,",null,"2022 - Акція \"Відсортуй сміття та допоможи ЗСУ\""]
["6.1.2 Ефект зразковості, корпоративна ідентичність"]
["6.1.2 а","Інтеграція своєї інноваційної енергетичної і кліматичної політики та активне про це інформування  ","Розвиток офіційного сайту та сторінок у соціальних мережах із збільшенням тем про енергетичну та кліматичну політику громади","відділ муніципального розвитку та енергоменеджменту, відділ інформаційної політики","***","2022-2025","не потребує фінансування","не потребує фінансування","не потребує фінансування","не потребує фінансування","не потребує фінансування"]
["6.1.2 б","Інтеграція своєї інноваційної енергетичної і кліматичної політики та активне про це інформування  ","Використання логотипу Європейської енергетичної відзнаки на сайті, промоційних матеріалах, згадка на брифінгах, інформаційних нагодах","відділ муніципального розвитку та енергоменеджменту","***","2022-2025","не потребує фінансування","не потребує фінансування","не потребує фінансування","не потребує фінансування","не потребує фінансування"]
["6.2 Співпраця та комунікація з органами влади"]
["6.2.1 Організація управління житловим фондом"]
["6.2.1 а","Співпраця з організаціями і установами в сфері житла з метою впровадження високих стандартів енергоефективності, використання відновлюваних джерел енергії та захисту клімату","Проведення навчаннь, круглих столів, зустрічей з ОСББ щодо підвищення обізнаності у сфері енергоефективності та впровадження енергоефективних заходів у житлових будівлях","відділ муніципального розвитку та енергоменеджменту, відділ житлово-комунального господарства та підтримки ОСББ","***","2022-2025","не потребує фінансування","не потребує фінансування","не потребує фінансування","не потребує фінансування","не потребує фінансування"]
["6.2.1 б","Співпраця з організаціями і установами в сфері житла з метою впровадження високих стандартів енергоефективності, використання відновлюваних джерел енергії та захисту клімату","Програма підтримки та стимулювання створення ефективних об'єднань співвласників багатоквартирних будинків Чортківської міської територіальної громади  на 2021-2023 роки"," відділ житлово-комунального господарства та підтримки ОСББ","**","2022-2023",299.8,500,null,null,"бюджет Чортківської територіальної громади"]
["6.2.2  Інші громади та регіони"]
["6.2.2 а","Співпраця з іншими громадами на регіональному, національному, міжнародному рівнях з питань сталої енергетичної політики ","\"Енергетичне побратимство\" міст на національному та міжнародному рівнях - організація та проведення робочих зустрічей, прийом офіційних делегацій, міжнародних та вітчизняних партнерів","відділ муніципального розвитку та енергоменеджменту","***","2022-2025","не потребує фінансування","не потребує фінансування","не потребує фінансування","не потребує фінансування","не потребує фінансування"]
["6.2.3  Регіональні та національні органи влади"]
["6.2.3 а","Підтримка об'єднань співвласників багатоквартирних будинків","Участь в державній Програмі підтримки енергомодернізації багатоквартирних будинків \"Енергодім\" Фонду енергоефективності"," відділ житлово-комунального господарства та підтримки ОСББ","***","2022-2025","не потребує фінансування","не потребує фінансування","не потребує фінансування","не потребує фінансування","державний бюджет"]
["6.2.3 б","Підтримка багатоквартирних житлових будинків","Енергомодернізація багатоквартирного житлового сектору за Програмою Президента України \"Велика термомодернізація\""," відділ житлово-комунального господарства та підтримки ОСББ","***","2022-2025","не заплановане фінансування","не \nзаплановане фінансування","не \nзаплановане фінансування","не заплановане фінансування","державний бюджет"]
["6.2.3 в","Впровадження стратегій пом’якшення змін клімату та енергозбереження на регіональному та національному рівнях","Просування ідей Європейської енергетичної відзнаки та Угоди мерів на рівні обласної адміністрації","відділ муніципального розвитку та енергоменеджменту","***","2022-2025","не потребує фінансування","не потребує фінансування","не потребує фінансування","не потребує фінансування","не потребує фінансування"]
["6.2.4  Університети та наукові дослідження"]
["6.2.4 а","Співпраця з університетами і науковцями в напрямках сталого використання енергії, транспорту і клімату","Організація проходження практики/стажування здобувачів освіти навчальних закладів у структурних підрозділах виконавчого комітету міської ради, комунальних підприємствах ","відділ муніципального розвитку та енергоменеджменту, Управління комунального господарства","*","2022-2025","не потребує фінансування","не потребує фінансування","не потребує фінансування","не потребує фінансування","не потребує фінансування"]
["6.2.5  Школи, дошкільні навчальні заклади"]
["6.2.5 а","Співпраця зі школами та дитячими садочками за участю учнів, вчителів і енергоменеджерів щодо здійснення проєктів в сфері енергетики та клімату ","Сприяння організації та проведення уроків, конкурсів, подій щодо енергоефективності, відновлюваних джерел енергії та зміни клімату","Управління освіти, молоді та спорту, відділ муніципального розвитку та енергоменеджменту","***","2022-2025","не потребує фінансування","не потребує фінансування","не потребує фінансування","не потребує фінансування","не потребує фінансування",null,"2022 - Майстер-клас для школярів з демонстрацією кейсу енергоменеджера, екскурсія на ГЕС с. Біла та с. Скородинці. 2023 - Акція з сортування за участю ЗОШ та ДНЗ"]
["6.2.5 б","Співпраця зі школами та дитячими садочками за участю учнів, вчителів і енергоменеджерів щодо здійснення проєктів в сфері енергетики та клімату ","Проведення інформаційних кампаній в школах та розміщення інформаційних таблиць поруч із кранами, вмикачами світла та розетками про важливість ощадливого використання енергії","Управління освіти, молоді та спорту","***","2022-2025","не потребує фінансування","не потребує фінансування","не потребує фінансування","не потребує фінансування","не потребує фінансування"]
["6.3 Співпраця та комунікація з промисловістю, бізнесом та торгівлею"]
["6.3.1 Промисловість, бізнес, торгівля та постачальники послуг"]
["6.3.1 а","Співпраця з промисловістю, бізнесом, торгівлею та постачальниками послуг щодо  впровадження високих стандартів енергоефективності, просування використання відновлюваних джерел енергії та підтримки захисту клімат","Організація та проведення \"Ярмарку енергоефективності\", проведення інших спільних з підприємствами, бізнесом подій щодо енергоефективності, відновлюваних джерел енергії, мобільності, зміни клімату, озеленення тощо","відділ муніципального розвитку та енергоменеджменту","**","2024-2025",null,null,null,null,"бюджет Чортківської територіальної громади"]
["6.3.1 б","Будівництво інвестиційних обєктів","Будівництво мереж індустріального парку \"Chortkiv West\"","Відділ муніципального розвитку та енергоменеджменту ","***","2022-2025",null,8000,10000,30000,"грантові"]
["6.3.1 в","Будівництво інвестиційних обєктів","Нове будівництво \"Креативний ХАБ - Територія Успіху\" з використанням енергоефективних матеріалів ","Відділ муніципального розвитку та енергоменеджменту ","***",2024,null,null,11000,null,"грантові"]
["6.3.3 Маркетинг розташування"]
["6.3.3 а","Фокус на політиці стійкого розвитку і створення екологічно чистих, \"зелених\" бізнесів","Сприяння залученю в громаду підприємств, що працюють із зеленими технологіями. Ініціювати проведення заходів для зацікавлених сторін (бізнесу) шляхом проведення форумів та інших заходів щодо розвитку еклогоічно чистих підприємств","відділ муніципального розвитку та енергоменеджменту, ГО \"Зелений світ\"","**","2022-2025","не потребує фінансування","не потребує фінансування","не потребує фінансування","не потребує фінансування","не потребує фінансування"]
["6.4 Зв'язок та співпраця з мешканцями та місцевими мультиплікаторами "]
["6.4.1 Робочі групи, участь"]
["6.4.1 а","Залучення мешканців до процесів прийняття рішень та формування робочих груп з прийняття, підтримки та реалізації енергетичних або кліматичних проєктів","Сприяння участі активної молоді, громадських організацій, бізнесу у засіданнях робочих груп ","відділ муніципального розвитку та енергоменеджменту","***","2022-2025","не потребує фінансування","не потребує фінансування","не потребує фінансування","не потребує фінансування","не потребує фінансування"]
["6.4.1 б","Залучення мешканців до процесів прийняття рішень та формування робочих груп з прийняття, підтримки та реалізації енергетичних або кліматичних проєктів","Сприяння у створенні місцевої асоціації велосипедистів та інших громадських організацій, що зосереджуватимуть увагу на сталій енергії, захисті клімату та сталому розвитку громади","відділ муніципального розвитку та енергоменеджменту","***","2022-2025","не потребує фінансування","не потребує фінансування","не потребує фінансування","не потребує фінансування","не потребує фінансування"]
["6.4.2 Місцеве населення"]
["6.4.2 а","Інформування і мотивація населення до впровадження енергетичних і кліматичних заходів з метою  сталого розвитку","Організація та проведення щорічного заходу \"Дні сталої енергії\" ","відділ муніципального розвитку та енергоменеджменту","***","2022-2025","не потребує фінансування","не потребує фінансування","не потребує фінансування","не потребує фінансування","не потребує фінансування"]
["6.4.3 Мультиплікатори (ГО, релігійні установи, асоціації)"]
["6.4.3 а","Інформування і мотивація громадських організацій та інших до включення енергетичних і кліматичних заходів у свої рішення, щоб ставати зразками для наслідування","Реалізація спільних проєктів з громадськими організаціями ","відділ муніципального розвитку та енергоменеджменту","***","2022-2025","не потребує фінансування","не потребує фінансування","не потребує фінансування","не потребує фінансування","не потребує фінансування",null,"2022 - \"Ейдос\", Мережа захисту національних інтересів «А Н Т С»"]
["6.5 Підтримка приватних заходів (ініціативи «ззовні» - від мешканців, бізнесу і т.д) "]
["6.5.1 Інформаційний центр з питань енергетики, мобільності та екології"]
["6.5.1 а","Підтримка роботи інформаційно-консультаційних центрів, консультацій будівельних організацій щодо відновлюваних джерел енергії, експлуатації будівель, будівництва, енергоефективності, мобільності","Сприяння розвитку приватних інформаційних центрів у сфері енергоефективності","відділ муніципального розвитку та енергоменеджменту","**","2022-2025","не потребує фінансування","не потребує фінансування","не потребує фінансування","не потребує фінансування","не потребує фінансування"]
["6.5.1 б","Підтримка роботи інформаційно-консультаційних центрів, консультацій будівельних організацій щодо відновлюваних джерел енергії, експлуатації будівель, будівництва, енергоефективності, мобільності","Створення та підтримка контактного центру онлайн \"Гаряча лінія міста\"","відділ електроних послуг управління комунального господарства","**","2023-2025",null,5,5,5,"бюджет Чортківської територіальної громади"]
["6.5.2 Маяковий проект"]
["6.5.3 Фінансова підтримка"]
["6.5.3 а","Надання фінансової підтримки проєктам направленим на скорочення енергоспоживання та захист клімату, які реалізують власники будинків, розташовані на території громади","Впровадження енергоефективних заходів у будинку ОСББ \"Шевченка 30\" відповідно до прогами енергомодернізації \"Енергодім\"","управління комунального господарства, органи правління ОСББ","***",2023,null,2720,null,null,"державний бюджет"]
[null,null,null,null,null,null,null,1800,null,null,"бюджет Чортківської територіальної громади"]
[null,null,null,null,null,null,null,1480,null,null,"кошти ОСББ"]
["6.5.3 б","Надання фінансової підтримки проєктам направленим на скорочення енергоспоживання та захист клімату, які реалізують власники будинків, розташовані на території громади","Впровадження енергоефективних заходів у будинку ОСББ \"Любисток 9\", вул. Незалежності 86, відповідно до прогами енергомодернізації \"Енергодім\"","управління комунального господарства, органи правління ОСББ","***",2023,null,4750,null,null,"державний бюджет"]
[null,null,null,null,null,null,null,675,null,null,"бюджет Чортківської територіальної громади"]
[null,null,null,null,null,null,null,1350,null,null,"кошти ОСББ"]
["6.5.3 в","Надання фінансової підтримки проєктам направленим на скорочення енергоспоживання та захист клімату, які реалізують власники будинків, розташовані на території громади","Впровадження енергоефективних заходів у будинку ОСББ \"Старий дім\", вул. Шевченка 22-28, відповідно до прогами енергомодернізації \"Енергодім\"","управління комунального господарства, органи правління ОСББ","***",2023,null,null,null,null,"державний бюджет"]
[null,null,null,null,null,null,null,null,null,null,"бюджет Чортківської територіальної громади"]
[null,null,null,null,null,null,null,null,null,null,"кошти ОСББ",null,"7200 - заявка по програмв \"Енергодім\""]
["6.5.3 г","Надання фінансової підтримки проєктам направленим на скорочення енергоспоживання та захист клімату, які реалізують власники будинків, розташовані на території громади","Приєднання до револьверного фонду АЕМУ","Управління комунального господарства","***",2023,null,null,null,null,"кошти ОСББ"]
["Всього по розділу 6: державний бюджет",null,null,null,null,null,null,{"$f":"H251+H254","v":7470},0,0]
["Всього по розділу 6: бюджет Чортківської міської територіальної громади",null,null,null,null,null,null,{"$f":"H211+H252+H248+H255","v":2570},{"$f":"I211+I248","v":105},{"$f":"J211+J248","v":105}]
["Всього по розділу 6: грантові кошти",null,null,null,null,null,null,{"$f":"H233","v":8000},{"$f":"I233+I234","v":21000},{"$f":"J233","v":30000}]
["Всього по розділах 1-6: державний бюджет",null,null,null,null,null,null,{"$f":"H92+H140","v":0},{"$f":"I92+I140","v":225395.42799999999}]
["Всього по розділу 1-6: бюджет Чортківської міської територіальної громади",null,null,null,null,null,null,{"$f":"H36+H93+H141+H180+H262+H204","v":15192.5},{"$f":"I36+I93+I180+I262+I204","v":10096},{"$f":"J36+J93+J141+J180+J262","v":2762}]
["Всього по розділах 1-6: грантові кошти",null,null,null,null,null,null,{"$f":"H38+H94++H181+H263","v":18956.933000000001},{"$f":"I38+I94+I142+I181+I263","v":92909.969000000012},{"$f":"J38+J94+J142+J181+J263+J204","v":73868}]
["Всього по розділах 1-6: кредитні кошти",null,null,null,null,null,null,{"$f":"H95","v":56755.769},{"$f":"I95","v":0},0]
["Всього по розділах 1-6: інвестиційні кошти підприємства",null,null,null,null,null,null,{"$f":"H37","v":1500},{"$f":"I37","v":1500},0]

{"sheet":"Лист1","index":1,"n_rows":15,"n_cols":13,"rows_kept":15,"cut":false,"hidden":false,"merged":[]}
[]
[null,"Енергомодернізація житлових будівель","Впровадження енергоефективних заходів у будинку ОСББ \"Старий дім\", вул. Шевченка 22-28, відповідно до прогами енергомодернізації \"Енергодім\"","органи правління ОСББ","***",2022,"орієнт. 2500",null,null,null,"міський бюджет,\nдержавний бюджет",null,"Деталізувати обсяг фінансування (вказати суму з бюджету територіальної громади та окремо суму з державного бюджету)\nЗамінали слово \"будинків\" на слова \"житлові будівлі\"\nЗамінила слово \"Виконання\" на слово \"Впровадження\"\nЗамінила слово \"Енергозберігаючі\" на слово \"Енергоефективні\"\nЗамінила виконавців \"органи правління ОСББ\" на \"відділ житлово-комунального господарства\"\nЗамінила слова \"міський бюджет\" на \"бюджет територіальної громади\""]
[null,"Енергомодернізація житлових будівель","Впровадження енергоефективних заходів у будинку ОСББ \"Любисток 9\", вул. Незалежності 86, відповідно до прогами енергомодернізації \"Енергодім\"","органи правління ОСББ","***",2022,7200,null,null,null,"міський бюджет,\nдержавний бюджет",null,"Деталізувати обсяг фінансування (вказати суму з бюджету територіальної громади та окремо суму з державного бюджету)\nЗамінали слово \"будинків\" на слова \"житлові будівлі\"\nЗамінила слово \"Виконання\" на слово \"Впровадження\"\nЗамінила слово \"Енергозберігаючі\" на слово \"Енергоефективні\"\nЗамінила виконавців \"органи правління ОСББ\" на \"відділ житлово-комунального господарства\"\nЗамінила слова \"міський бюджет\" на \"бюджет територіальної громади\""]
[]
[]
[]
[]
[]
[]
[]
[null,"Запровадження енергоефективних заходів","Запровадження системи енергоменеджменту в бюджетних будівлях та енергоаудит будівель, виготовлення технічної документації","Відділ муніципального розвитку та енергоменеджменту Чортківської міської ради","***","2022-2025",250000,500000,500000,1000,"міський бюджет,\nдержавний бюджет",null,"Вказати дослівну назву з розробленої проєктно-кошторисної (ПКД) документації (за наявності)?\nВказати перелік робіт, які стосуються енергоефективності та передбачені в ПКД. \nЗамінила слова \"міський бюджет\" на \"бюджет територіальної громади\""]
[null,"Будівництво інвестиційних обєктів","Будівництво мереж індустріального парку \"Chortkiv West\"","Відділ муніципального розвитку та енергоменеджменту Чортківської міської ради","***","2022-2026",4000,8000,10000,30000,"міський бюджет,\nдержавний бюджет"]
[null,"Будівництво інвестиційних обєктів","Нове будівництво \"Креативний ХАБ- Територія Успіху\" з використанням енергоефективних матеріалів ","Відділ муніципального розвитку та енергоменеджменту Чортківської міської ради","***",2022,11000,null,null,null,"міський бюджет,\nдержавний бюджет",null,"Деталізувати, скільки шт.\nЗамінила слова \"міський бюджет\" на \"бюджет територіальної громади\""]
[]
["1 *** - високий пріоритет, захід програми виконується в першу чергу,  ** - середній пріоритет, захід програми виконується в другу чергу,  * - низький пріорите, захід програми виконується в третю чергу"]